[Event "Titled Tuesday Blitz August 22 Late 2023"]
[White "Ballester Llagaria, Luis Eduardo"]
[Black "Akobian, Varuzhan"]
[WhiteFideId "2297620"]
[BlackFideId "13300580"]
[WhiteElo "2554"]
[BlackElo "2737"]
[Result "0-1"]
[Round "5"]
[TimeControl "180+1"]
[Date "2023.08.22"]
[WhiteClock "0:00:01"]
[BlackClock "0:00:07"]
[Board "52"]

1. e4 {[%clk 0:03:00]}  e6 {[%clk 0:02:57]} 2. d4 {[%clk 0:03:00]}  d5 {[%clk 0:02:56]} 3. Bd3 {[%clk 0:03:00]}  Be7 {[%clk 0:02:55]} 4. Nd2 {[%clk 0:02:49]}  Nf6 {[%clk 0:02:54]} 5. e5 {[%clk 0:02:48]}  Nfd7 {[%clk 0:02:50]} 6. f4 {[%clk 0:02:46]}  g6 {[%clk 0:02:50]} 7. Ndf3 {[%clk 0:02:42]}  c5 {[%clk 0:02:47]} 8. c3 {[%clk 0:02:41]}  b6 {[%clk 0:02:47]} 9. Ne2 {[%clk 0:02:35]}  Ba6 {[%clk 0:02:46]} 10. Be3 {[%clk 0:02:07]}  Bxd3 {[%clk 0:02:45]} 11. Qxd3 {[%clk 0:02:08]}  Nc6 {[%clk 0:02:45]} 12. a3 {[%clk 0:02:08]}  c4 {[%clk 0:02:42]} 13. Qd2 {[%clk 0:02:08]}  h5 {[%clk 0:02:42]} 14. O-O-O {[%clk 0:02:08]}  b5 {[%clk 0:02:41]} 15. Rdg1 {[%clk 0:02:04]}  a5 {[%clk 0:02:40]} 16. Kd1 {[%clk 0:02:05]}  b4 {[%clk 0:02:41]} 17. axb4 {[%clk 0:02:04]}  axb4 {[%clk 0:02:40]} 18. Ke1 {[%clk 0:02:05]}  Ra2 {[%clk 0:02:39]} 19. Kf2 {[%clk 0:02:03]}  bxc3 {[%clk 0:02:39]} 20. Nxc3 {[%clk 0:02:03]}  Qb6 {[%clk 0:02:39]} 21. Nxa2 {[%clk 0:02:02]}  Qb3 {[%clk 0:02:32]} 22. Nc3 {[%clk 0:02:00]}  Nb4 {[%clk 0:02:32]} 23. Ra1 {[%clk 0:01:47]}  Nd3+ {[%clk 0:02:31]} 24. Ke2 {[%clk 0:01:30]}  O-O {[%clk 0:02:30]} 25. Rhb1 {[%clk 0:01:18]}  Rb8 {[%clk 0:02:00]} 26. Ra7 {[%clk 0:01:17]}  Rb7 {[%clk 0:01:52]} 27. Rxb7 {[%clk 0:01:17]}  Qxb7 {[%clk 0:01:51]} 28. b3 {[%clk 0:01:13]}  Bb4 {[%clk 0:01:40]} 29. Ne1 {[%clk 0:01:06]}  Nxe1 {[%clk 0:01:25]} 30. Kxe1 {[%clk 0:00:58]}  Qa6 {[%clk 0:01:24]} 31. Kf2 {[%clk 0:00:55]}  Qa5 {[%clk 0:01:18]} 32. Rc1 {[%clk 0:00:45]}  cxb3 {[%clk 0:01:12]} 33. Qb2 {[%clk 0:00:45]}  Ba3 {[%clk 0:01:05]} 34. Qxb3 {[%clk 0:00:37]}  Bxc1 {[%clk 0:01:05]} 35. Bxc1 {[%clk 0:00:38]}  Nb6 {[%clk 0:01:05]} 36. Bd2 {[%clk 0:00:29]}  Nc4 {[%clk 0:01:04]} 37. Be1 {[%clk 0:00:29]}  Qa1 {[%clk 0:01:01]} 38. Ne2 {[%clk 0:00:28]}  Kg7 {[%clk 0:01:01]} 39. Qc3 {[%clk 0:00:24]}  Qb1 {[%clk 0:00:59]} 40. g3 {[%clk 0:00:23]}  Qe4 {[%clk 0:00:57]} 41. Qf3 {[%clk 0:00:23]}  Qc2 {[%clk 0:00:57]} 42. Qc3 {[%clk 0:00:22]}  Qb1 {[%clk 0:00:56]} 43. h3 {[%clk 0:00:22]}  Qf5 {[%clk 0:00:55]} 44. Kg2 {[%clk 0:00:20]}  Qe4+ {[%clk 0:00:55]} 45. Qf3 {[%clk 0:00:20]}  Ne3+ {[%clk 0:00:47]} 46. Kf2 {[%clk 0:00:18]}  Nd1+ {[%clk 0:00:46]} 47. Kg2 {[%clk 0:00:19]}  Ne3+ {[%clk 0:00:30]} 48. Kf2 {[%clk 0:00:19]}  Nd1+ {[%clk 0:00:28]} 49. Kg2 {[%clk 0:00:20]}  Qc2 {[%clk 0:00:22]} 50. g4 {[%clk 0:00:17]}  hxg4 {[%clk 0:00:22]} 51. hxg4 {[%clk 0:00:18]}  Nb2 {[%clk 0:00:22]} 52. f5 {[%clk 0:00:14]}  Nd3 {[%clk 0:00:18]} 53. Bf2 {[%clk 0:00:10]}  gxf5 {[%clk 0:00:15]} 54. gxf5 {[%clk 0:00:11]}  exf5 {[%clk 0:00:15]} 55. Qe3 {[%clk 0:00:05]}  Kf8 {[%clk 0:00:09]} 56. Qh6+ {[%clk 0:00:05]}  Ke8 {[%clk 0:00:09]} 57. Nf4 {[%clk 0:00:04]}  Qxf2+ {[%clk 0:00:07]} 58. Kh1 {[%clk 0:00:04]}  Qf1+ {[%clk 0:00:06]} 59. Kh2 {[%clk 0:00:01]}  Qxf4+ {[%clk 0:00:07]} 0-1


[Site "https://www.chess.com"]

[Event "Titled Tuesday Blitz August 22 Late 2023"]
[White "Martinez Ramirez, Lennis"]
[Black "Sanhueza, Cristian"]
[WhiteFideId "3509079"]
[BlackFideId "116815"]
[WhiteElo "2736"]
[BlackElo "2487"]
[Result "1-0"]
[Round "5"]
[TimeControl "180+1"]
[Date "2023.08.22"]
[WhiteClock "0:02:03"]
[BlackClock "0:01:53"]
[Board "53"]

1. Nf3 {[%clk 0:03:00]}  Nf6 {[%clk 0:02:56]} 2. c4 {[%clk 0:02:58]}  g6 {[%clk 0:02:56]} 3. b4 {[%clk 0:02:58]}  Bg7 {[%clk 0:02:57]} 4. Bb2 {[%clk 0:02:59]}  O-O {[%clk 0:02:57]} 5. g3 {[%clk 0:02:59]}  a5 {[%clk 0:02:57]} 6. b5 {[%clk 0:02:58]}  d6 {[%clk 0:02:57]} 7. Bg2 {[%clk 0:02:58]}  e5 {[%clk 0:02:58]} 8. O-O {[%clk 0:02:58]}  Nbd7 {[%clk 0:02:58]} 9. Nc3 {[%clk 0:02:58]}  Nc5 {[%clk 0:02:59]} 10. d3 {[%clk 0:02:58]}  Be6 {[%clk 0:02:58]} 11. Nd2 {[%clk 0:02:58]}  Qd7 {[%clk 0:02:55]} 12. Nb3 {[%clk 0:02:58]}  Nxb3 {[%clk 0:02:54]} 13. axb3 {[%clk 0:02:59]}  c6 {[%clk 0:02:54]} 14. Qd2 {[%clk 0:02:56]}  d5 {[%clk 0:02:52]} 15. Na4 {[%clk 0:02:51]}  Qc7 {[%clk 0:02:48]} 16. b6 {[%clk 0:02:49]}  Qd6 {[%clk 0:02:43]} 17. Ba3 {[%clk 0:02:48]}  Qd7 {[%clk 0:02:41]} 18. Nc5 {[%clk 0:02:47]}  Qc8 {[%clk 0:02:39]} 19. Nxe6 {[%clk 0:02:47]}  Qxe6 {[%clk 0:02:40]} 20. Bxf8 {[%clk 0:02:47]}  Bxf8 {[%clk 0:02:40]} 21. Rxa5 {[%clk 0:02:47]}  Rd8 {[%clk 0:02:34]} 22. c5 {[%clk 0:02:47]}  e4 {[%clk 0:02:33]} 23. d4 {[%clk 0:02:46]}  Ng4 {[%clk 0:02:30]} 24. Qf4 {[%clk 0:02:44]}  f5 {[%clk 0:02:30]} 25. Ra7 {[%clk 0:02:36]}  Rd7 {[%clk 0:02:16]} 26. h3 {[%clk 0:02:24]}  Nf6 {[%clk 0:02:13]} 27. e3 {[%clk 0:02:20]}  Kf7 {[%clk 0:02:09]} 28. Qb8 {[%clk 0:02:19]}  Qe7 {[%clk 0:02:09]} 29. Rfa1 {[%clk 0:02:16]}  g5 {[%clk 0:02:07]} 30. Rxb7 {[%clk 0:02:11]}  Rxb7 {[%clk 0:02:06]} 31. Qxb7 {[%clk 0:02:02]}  Qxb7 {[%clk 0:01:53]} 32. Ra7 {[%clk 0:02:03]} 1-0


[Site "https://www.chess.com"]

[Event "Titled Tuesday Blitz August 22 Late 2023"]
[White "ExchangeAB"]
[Black "Santos Latasa, Jaime"]
[BlackFideId "2293307"]
[WhiteElo "2440"]
[BlackElo "2962"]
[Result "1/2-1/2"]
[Round "5"]
[TimeControl "180+1"]
[Date "2023.08.22"]
[WhiteClock "0:00:17"]
[BlackClock "0:00:52"]
[Board "57"]

1. d4 {[%clk 0:03:00]}  Nf6 {[%clk 0:02:59]} 2. Nc3 {[%clk 0:02:57]}  d5 {[%clk 0:02:56]} 3. Bf4 {[%clk 0:02:56]}  a6 {[%clk 0:02:54]} 4. e3 {[%clk 0:02:57]}  h6 {[%clk 0:02:54]} 5. Nf3 {[%clk 0:02:56]}  Bf5 {[%clk 0:02:51]} 6. Ne5 {[%clk 0:02:56]}  e6 {[%clk 0:02:50]} 7. Bd3 {[%clk 0:02:56]}  Bxd3 {[%clk 0:02:49]} 8. cxd3 {[%clk 0:02:56]}  Nfd7 {[%clk 0:02:49]} 9. O-O {[%clk 0:02:56]}  Nxe5 {[%clk 0:02:49]} 10. Bxe5 {[%clk 0:02:56]}  Nd7 {[%clk 0:02:45]} 11. Bg3 {[%clk 0:02:56]}  Be7 {[%clk 0:02:45]} 12. Rc1 {[%clk 0:02:56]}  O-O {[%clk 0:02:45]} 13. a3 {[%clk 0:02:56]}  c6 {[%clk 0:02:40]} 14. Na4 {[%clk 0:02:54]}  Re8 {[%clk 0:02:38]} 15. h3 {[%clk 0:02:41]}  a5 {[%clk 0:02:35]} 16. Nc3 {[%clk 0:02:26]}  b5 {[%clk 0:02:32]} 17. Ne2 {[%clk 0:02:23]}  Qb6 {[%clk 0:02:31]} 18. Qb3 {[%clk 0:02:20]}  Rec8 {[%clk 0:02:27]} 19. Nf4 {[%clk 0:02:08]}  a4 {[%clk 0:02:20]} 20. Qd1 {[%clk 0:02:07]}  c5 {[%clk 0:02:19]} 21. dxc5 {[%clk 0:02:07]}  Nxc5 {[%clk 0:02:19]} 22. d4 {[%clk 0:02:07]}  Ne4 {[%clk 0:02:16]} 23. Bh2 {[%clk 0:01:59]}  Rxc1 {[%clk 0:02:09]} 24. Qxc1 {[%clk 0:02:00]}  Qb7 {[%clk 0:02:10]} 25. Nd3 {[%clk 0:01:48]}  Rc8 {[%clk 0:02:08]} 26. Qd1 {[%clk 0:01:48]}  b4 {[%clk 0:02:01]} 27. Qxa4 {[%clk 0:01:40]}  bxa3 {[%clk 0:01:59]} 28. bxa3 {[%clk 0:01:37]}  Ra8 {[%clk 0:01:41]} 29. Qc2 {[%clk 0:01:29]}  Rxa3 {[%clk 0:01:40]} 30. Rb1 {[%clk 0:01:23]}  Qa6 {[%clk 0:01:37]} 31. Rd1 {[%clk 0:01:01]}  Ra2 {[%clk 0:01:31]} 32. Qb1 {[%clk 0:00:54]}  Nc3 {[%clk 0:01:26]} 33. Qb8+ {[%clk 0:00:53]}  Kh7 {[%clk 0:01:25]} 34. Ne5 {[%clk 0:00:37]}  Nxd1 {[%clk 0:01:18]} 35. Nxf7 {[%clk 0:00:37]}  Qa8 {[%clk 0:01:15]} 36. Qb1+ {[%clk 0:00:32]}  Kg8 {[%clk 0:01:13]} 37. Qg6 {[%clk 0:00:31]}  Qe8 {[%clk 0:01:10]} 38. Nxh6+ {[%clk 0:00:27]}  Kf8 {[%clk 0:01:10]} 39. Qxe6 {[%clk 0:00:24]}  gxh6 {[%clk 0:01:03]} 40. Qxh6+ {[%clk 0:00:18]}  Kg8 {[%clk 0:00:59]} 41. Be5 {[%clk 0:00:16]}  Bf8 {[%clk 0:00:52]} 42. Qh8+ {[%clk 0:00:16]}  Kf7 {[%clk 0:00:52]} 43. Qf6+ {[%clk 0:00:16]}  Kg8 {[%clk 0:00:52]} 44. Qh8+ {[%clk 0:00:16]}  Kf7 {[%clk 0:00:52]} 45. Qf6+ {[%clk 0:00:17]}  Kg8 {[%clk 0:00:52]} 46. Qh8+ {[%clk 0:00:17]} 1/2-1/2


[Site "https://www.chess.com"]

[Event "Titled Tuesday Blitz August 22 Late 2023"]
[White "Martinez Reyes, Pedro Ramon"]
[Black "Paravyan, David"]
[WhiteFideId "3901807"]
[BlackFideId "4194985"]
[WhiteElo "2594"]
[BlackElo "2959"]
[Result "0-1"]
[Round "5"]
[TimeControl "180+1"]
[Date "2023.08.22"]
[WhiteClock "0:00:32"]
[BlackClock "0:01:53"]
[Board "58"]

1. e4 {[%clk 0:02:56]}  e5 {[%clk 0:03:00]} 2. Nf3 {[%clk 0:02:56]}  Nf6 {[%clk 0:03:00]} 3. Nc3 {[%clk 0:02:53]}  Nc6 {[%clk 0:03:00]} 4. Be2 {[%clk 0:02:53]}  d5 {[%clk 0:03:00]} 5. exd5 {[%clk 0:02:53]}  Nxd5 {[%clk 0:03:01]} 6. O-O {[%clk 0:02:53]}  Nxc3 {[%clk 0:03:01]} 7. bxc3 {[%clk 0:02:53]}  e4 {[%clk 0:03:02]} 8. Ne1 {[%clk 0:02:53]}  Bd6 {[%clk 0:03:02]} 9. f3 {[%clk 0:02:53]}  Bf5 {[%clk 0:03:03]} 10. fxe4 {[%clk 0:02:50]}  Bxe4 {[%clk 0:03:04]} 11. Nf3 {[%clk 0:02:51]}  O-O {[%clk 0:03:03]} 12. d3 {[%clk 0:02:47]}  Bg6 {[%clk 0:03:03]} 13. d4 {[%clk 0:02:47]}  Re8 {[%clk 0:03:02]} 14. Bd3 {[%clk 0:02:47]}  Qd7 {[%clk 0:03:02]} 15. Rb1 {[%clk 0:02:47]}  b6 {[%clk 0:03:02]} 16. Bd2 {[%clk 0:02:30]}  Re7 {[%clk 0:02:50]} 17. Ng5 {[%clk 0:02:12]}  Rae8 {[%clk 0:02:48]} 18. Qf3 {[%clk 0:01:59]}  h6 {[%clk 0:02:38]} 19. Bxg6 {[%clk 0:01:41]}  fxg6 {[%clk 0:02:37]} 20. Qd5+ {[%clk 0:01:41]}  Re6 {[%clk 0:02:32]} 21. Qb5 {[%clk 0:00:54]}  hxg5 {[%clk 0:02:18]} 22. d5 {[%clk 0:00:53]}  Re2 {[%clk 0:02:17]} 23. dxc6 {[%clk 0:00:53]}  Rxg2+ {[%clk 0:01:54]} 24. Kxg2 {[%clk 0:00:37]}  Qg4+ {[%clk 0:01:55]} 25. Kf2 {[%clk 0:00:32]}  Bc5+ {[%clk 0:01:53]} 0-1


[Site "https://www.chess.com"]

[Event "Titled Tuesday Blitz August 22 Late 2023"]
[White "Sargsyan, Shant"]
[Black "Pinheiro, Iung Alicio de O."]
[WhiteFideId "13306766"]
[BlackFideId "2104350"]
[WhiteElo "2915"]
[BlackElo "2598"]
[Result "1-0"]
[Round "5"]
[TimeControl "180+1"]
[Date "2023.08.22"]
[WhiteClock "0:00:23"]
[BlackClock "0:00:02"]
[Board "59"]

1. c4 {[%clk 0:03:00]}  e5 {[%clk 0:02:55]} 2. g3 {[%clk 0:03:01]}  Nc6 {[%clk 0:02:51]} 3. Bg2 {[%clk 0:03:01]}  Bc5 {[%clk 0:02:51]} 4. Nc3 {[%clk 0:03:00]}  a6 {[%clk 0:02:50]} 5. e3 {[%clk 0:03:01]}  d6 {[%clk 0:02:50]} 6. Nge2 {[%clk 0:03:01]}  Ba7 {[%clk 0:02:50]} 7. d4 {[%clk 0:03:01]}  h5 {[%clk 0:02:50]} 8. h4 {[%clk 0:02:56]}  Bg4 {[%clk 0:02:37]} 9. Qb3 {[%clk 0:02:54]}  Qc8 {[%clk 0:02:17]} 10. dxe5 {[%clk 0:02:44]}  Nxe5 {[%clk 0:02:10]} 11. Qxb7 {[%clk 0:02:37]}  Qxb7 {[%clk 0:02:01]} 12. Bxb7 {[%clk 0:02:38]}  Rb8 {[%clk 0:02:02]} 13. Bg2 {[%clk 0:02:37]}  Nd3+ {[%clk 0:01:54]} 14. Kd2 {[%clk 0:01:51]}  Nxb2 {[%clk 0:01:45]} 15. Bxb2 {[%clk 0:01:49]}  Rxb2+ {[%clk 0:01:45]} 16. Kd3 {[%clk 0:01:50]}  Nf6 {[%clk 0:01:31]} 17. Rhb1 {[%clk 0:01:42]}  Rxb1 {[%clk 0:01:13]} 18. Rxb1 {[%clk 0:01:43]}  Nd7 {[%clk 0:01:06]} 19. Bc6 {[%clk 0:01:34]}  Kd8 {[%clk 0:01:05]} 20. Bxd7 {[%clk 0:01:31]}  Kxd7 {[%clk 0:01:05]} 21. Nd4 {[%clk 0:01:27]}  Bb6 {[%clk 0:00:30]} 22. f3 {[%clk 0:01:25]}  Be6 {[%clk 0:00:30]} 23. Nd5 {[%clk 0:01:16]}  Bxd5 {[%clk 0:00:25]} 24. cxd5 {[%clk 0:01:17]}  Re8 {[%clk 0:00:25]} 25. e4 {[%clk 0:01:17]}  g6 {[%clk 0:00:25]} 26. Nc6 {[%clk 0:00:58]}  f5 {[%clk 0:00:23]} 27. Rb4 {[%clk 0:00:54]}  Bf2 {[%clk 0:00:19]} 28. exf5 {[%clk 0:00:45]}  gxf5 {[%clk 0:00:18]} 29. Rf4 {[%clk 0:00:41]}  Bxg3 {[%clk 0:00:14]} 30. Rxf5 {[%clk 0:00:41]}  Bxh4 {[%clk 0:00:13]} 31. Rxh5 {[%clk 0:00:42]}  Bf2 {[%clk 0:00:14]} 32. Rh7+ {[%clk 0:00:40]}  Kc8 {[%clk 0:00:14]} 33. Ne7+ {[%clk 0:00:40]}  Kb7 {[%clk 0:00:14]} 34. f4 {[%clk 0:00:39]}  Rf8 {[%clk 0:00:08]} 35. f5 {[%clk 0:00:38]}  Bg3 {[%clk 0:00:07]} 36. Ke4 {[%clk 0:00:36]}  Be5 {[%clk 0:00:07]} 37. Ng6 {[%clk 0:00:33]}  Re8 {[%clk 0:00:07]} 38. Re7 {[%clk 0:00:30]}  Rxe7 {[%clk 0:00:03]} 39. Nxe7 {[%clk 0:00:31]}  Bf6 {[%clk 0:00:03]} 40. Ng8 {[%clk 0:00:31]}  Bg7 {[%clk 0:00:03]} 41. f6 {[%clk 0:00:32]}  Bf8 {[%clk 0:00:04]} 42. Kf5 {[%clk 0:00:29]}  c6 {[%clk 0:00:04]} 43. Ke6 {[%clk 0:00:23]}  cxd5 {[%clk 0:00:05]} 44. Kxd5 {[%clk 0:00:24]}  Kc7 {[%clk 0:00:05]} 45. Ke6 {[%clk 0:00:23]}  Kc6 {[%clk 0:00:05]} 46. Ne7+ {[%clk 0:00:23]}  Kc5 {[%clk 0:00:04]} 47. Nf5 {[%clk 0:00:18]}  d5 {[%clk 0:00:04]} 48. Kf7 {[%clk 0:00:19]}  Bd6 {[%clk 0:00:03]} 49. Nxd6 {[%clk 0:00:18]}  Kxd6 {[%clk 0:00:03]} 50. Kg7 {[%clk 0:00:17]}  d4 {[%clk 0:00:04]} 51. f7 {[%clk 0:00:18]}  d3 {[%clk 0:00:04]} 52. f8=Q+ {[%clk 0:00:19]}  Kd5 {[%clk 0:00:05]} 53. Qf4 {[%clk 0:00:19]}  Kc5 {[%clk 0:00:04]} 54. Qd2 {[%clk 0:00:20]}  Kd4 {[%clk 0:00:04]} 55. Kg6 {[%clk 0:00:21]}  Ke4 {[%clk 0:00:04]} 56. Kg5 {[%clk 0:00:22]}  Kd4 {[%clk 0:00:04]} 57. Kg4 {[%clk 0:00:23]}  a5 {[%clk 0:00:05]} 58. Kf3 {[%clk 0:00:23]}  a4 {[%clk 0:00:06]} 59. Qb4+ {[%clk 0:00:22]}  Kd5 {[%clk 0:00:02]} 60. Ke3 {[%clk 0:00:23]} 1-0


[Site "https://www.chess.com"]

[Event "Titled Tuesday Blitz August 22 Late 2023"]
[White "Ibadov, Dashgyn"]
[Black "Mikaelyan, Arman"]
[WhiteFideId "24107514"]
[BlackFideId "13304852"]
[WhiteElo "2593"]
[BlackElo "2902"]
[Result "1/2-1/2"]
[Round "5"]
[TimeControl "180+1"]
[Date "2023.08.22"]
[WhiteClock "0:00:09"]
[BlackClock "0:00:10"]
[Board "60"]

1. e4 {[%clk 0:03:00]}  h6 {[%clk 0:02:45]} 2. d4 {[%clk 0:03:00]}  e6 {[%clk 0:02:45]} 3. Nc3 {[%clk 0:03:00]}  d5 {[%clk 0:02:45]} 4. Nf3 {[%clk 0:02:56]}  Nf6 {[%clk 0:02:44]} 5. e5 {[%clk 0:02:52]}  Ne4 {[%clk 0:02:44]} 6. Bd3 {[%clk 0:02:45]}  Nxc3 {[%clk 0:02:44]} 7. bxc3 {[%clk 0:02:45]}  c5 {[%clk 0:02:45]} 8. O-O {[%clk 0:02:37]}  b6 {[%clk 0:02:45]} 9. a4 {[%clk 0:02:33]}  Ba6 {[%clk 0:02:45]} 10. Bb5+ {[%clk 0:02:32]}  Bxb5 {[%clk 0:02:41]} 11. axb5 {[%clk 0:02:32]}  Nd7 {[%clk 0:02:40]} 12. Qe2 {[%clk 0:02:26]}  Be7 {[%clk 0:02:41]} 13. c4 {[%clk 0:02:23]}  dxc4 {[%clk 0:02:38]} 14. Qxc4 {[%clk 0:02:22]}  Qc7 {[%clk 0:02:27]} 15. Be3 {[%clk 0:02:00]}  O-O {[%clk 0:02:26]} 16. dxc5 {[%clk 0:01:40]}  Bxc5 {[%clk 0:02:27]} 17. Bxc5 {[%clk 0:01:29]}  Qxc5 {[%clk 0:02:28]} 18. Qxc5 {[%clk 0:01:26]}  Nxc5 {[%clk 0:02:29]} 19. Ra3 {[%clk 0:01:26]}  Rfd8 {[%clk 0:02:29]} 20. Rfa1 {[%clk 0:01:24]}  Rd7 {[%clk 0:02:29]} 21. c3 {[%clk 0:01:17]}  Rad8 {[%clk 0:02:14]} 22. Nd4 {[%clk 0:01:17]}  Ne4 {[%clk 0:02:15]} 23. g3 {[%clk 0:00:54]}  Nxc3 {[%clk 0:01:59]} 24. Rxc3 {[%clk 0:00:54]}  Rxd4 {[%clk 0:01:58]} 25. Rxa7 {[%clk 0:00:55]}  R4d5 {[%clk 0:01:23]} 26. Rcc7 {[%clk 0:00:55]}  Rf8 {[%clk 0:01:23]} 27. f4 {[%clk 0:00:55]}  Rxb5 {[%clk 0:01:23]} 28. Kg2 {[%clk 0:00:53]}  Rb2+ {[%clk 0:01:22]} 29. Kh3 {[%clk 0:00:54]}  h5 {[%clk 0:01:21]} 30. Rab7 {[%clk 0:00:50]}  b5 {[%clk 0:01:11]} 31. Rc5 {[%clk 0:00:46]}  b4 {[%clk 0:01:09]} 32. Rcb5 {[%clk 0:00:46]}  Kh7 {[%clk 0:00:45]} 33. Rxb4 {[%clk 0:00:46]}  Re2 {[%clk 0:00:46]} 34. Rb2 {[%clk 0:00:36]}  Re4 {[%clk 0:00:44]} 35. Kh4 {[%clk 0:00:28]}  Kh6 {[%clk 0:00:41]} 36. R7b4 {[%clk 0:00:22]}  g5+ {[%clk 0:00:40]} 37. Kh3 {[%clk 0:00:22]}  g4+ {[%clk 0:00:27]} 38. Kh4 {[%clk 0:00:22]}  Re1 {[%clk 0:00:27]} 39. f5 {[%clk 0:00:17]}  Rxe5 {[%clk 0:00:26]} 40. fxe6 {[%clk 0:00:08]}  fxe6 {[%clk 0:00:27]} 41. Rb5 {[%clk 0:00:06]}  Rff5 {[%clk 0:00:23]} 42. Rb8 {[%clk 0:00:06]}  Rf7 {[%clk 0:00:17]} 43. Rg8 {[%clk 0:00:04]}  Rg7 {[%clk 0:00:14]} 44. Rh8+ {[%clk 0:00:02]}  Kg6 {[%clk 0:00:15]} 45. Rf2 {[%clk 0:00:02]}  Rd5 {[%clk 0:00:11]} 46. Re8 {[%clk 0:00:01]}  Rd6 {[%clk 0:00:07]} 47. Ref8 {[%clk 0:00:01]}  Rd5 {[%clk 0:00:04]} 48. R8f6+ {[%clk 0:00:01]}  Kh7 {[%clk 0:00:04]} 49. Rxe6 {[%clk 0:00:02]}  Rgd7 {[%clk 0:00:04]} 50. Ref6 {[%clk 0:00:02]}  Kg7 {[%clk 0:00:04]} 51. R6f5 {[%clk 0:00:02]}  Rxf5 {[%clk 0:00:04]} 52. Rxf5 {[%clk 0:00:03]}  Rd2 {[%clk 0:00:05]} 53. Kxh5 {[%clk 0:00:03]}  Rxh2+ {[%clk 0:00:05]} 54. Kxg4 {[%clk 0:00:04]}  Kg6 {[%clk 0:00:06]} 55. Re5 {[%clk 0:00:04]}  Rf2 {[%clk 0:00:06]} 56. Re6+ {[%clk 0:00:04]}  Kg7 {[%clk 0:00:06]} 57. Ra6 {[%clk 0:00:04]}  Kf7 {[%clk 0:00:06]} 58. Kg5 {[%clk 0:00:04]}  Kg7 {[%clk 0:00:07]} 59. g4 {[%clk 0:00:05]}  Rf7 {[%clk 0:00:06]} 60. Rb6 {[%clk 0:00:05]}  Rd7 {[%clk 0:00:05]} 61. Kh5 {[%clk 0:00:06]}  Kh7 {[%clk 0:00:06]} 62. g5 {[%clk 0:00:06]}  Kg7 {[%clk 0:00:06]} 63. Rc6 {[%clk 0:00:06]}  Re7 {[%clk 0:00:07]} 64. Rd6 {[%clk 0:00:06]}  Rc7 {[%clk 0:00:07]} 65. Kg4 {[%clk 0:00:07]}  Rc4+ {[%clk 0:00:07]} 66. Kf5 {[%clk 0:00:07]}  Rc7 {[%clk 0:00:07]} 67. Kg4 {[%clk 0:00:06]}  Rc4+ {[%clk 0:00:08]} 68. Kh5 {[%clk 0:00:06]}  Rc7 {[%clk 0:00:09]} 69. Rd5 {[%clk 0:00:07]}  Rb7 {[%clk 0:00:08]} 70. g6 {[%clk 0:00:07]}  Rc7 {[%clk 0:00:09]} 71. Rf5 {[%clk 0:00:07]}  Rb7 {[%clk 0:00:09]} 72. Kg5 {[%clk 0:00:07]}  Rc7 {[%clk 0:00:09]} 73. Rf7+ {[%clk 0:00:08]}  Rxf7 {[%clk 0:00:09]} 74. gxf7 {[%clk 0:00:09]}  Kxf7 {[%clk 0:00:10]} 1/2-1/2


[Site "https://www.chess.com"]